fUSD/lending_fUSD_20250123
["ID","MTS","AMOUNT","RATE_DAILY","PERIOD"]
[350131673,1737646246338,-582.25,0.00016711,2]
[350131674,1737646246348,-1327.53,0.00016711,2]
[350131675,1737646246358,-500.0,0.00016711,2]
[350131676,1737646246368,-500.0,0.00016711,2]
[350131677,1737646246378,-500.0,0.00016711,2]
[350131678,1737646246388,-734.22,0.00016711,2]
[350131680,1737646246398,-500.0,0.00016711,2]
[350131682,1737646246408,-500.0,0.00016711,2]
[350131684,1737646246418,-500.0,0.00016711,2]
[350131686,1737646246428,-500.0,0.00016711,2]
[350131688,1737646246438,-724.02,0.00016711,2]
[350131690,1737646246451,-500.0,0.00016711,2]
[350131692,1737646246461,-1365.92,0.00016711,2]
[350131694,1737646246471,-500.0,0.00016711,2]
[350131696,1737646246481,-500.0,0.00016711,2]
[350131698,1737646246491,-500.0,0.00016711,2]
[350131700,1737646246504,-500.0,0.00016711,2]
[350131701,1737646246514,-1679.6,0.00016711,2]
[350131703,1737646246524,-990.32,0.00016711,2]
[350131705,1737646246535,-500.0,0.00016711,2]
[350131707,1737646246545,-500.0,0.00016711,2]
[350131708,1737646246555,-500.0,0.00016711,2]
[350131709,1737646246565,-780.82,0.00016711,2]
[350131710,1737646246575,-500.0,0.00016711,2]
[350131711,1737646246585,-500.0,0.00016711,2]
[350131712,1737646246595,-500.0,0.00016711,2]
[350131713,1737646246605,-500.0,0.00016711,2]
[350131714,1737646246614,-1483.53,0.00016711,2]
[350131715,1737646246623,-500.0,0.00016711,2]
[350131716,1737646246634,-500.0,0.00016711,2]
[350131717,1737646246643,-500.0,0.00016711,2]
[350131718,1737646246653,-568.96,0.00016711,2]
[350131719,1737646246663,-500.0,0.00016711,2]
[350131720,1737646246673,-542.35,0.00016711,2]
[350131721,1737646246682,-500.0,0.00016711,2]
[350131722,1737646246692,-500.0,0.00016711,2]
[350131723,1737646246701,-501.11043883,0.00016711,2]
[350131724,1737646246711,-500.0,0.00016711,2]
[350131725,1737646246720,-817.26,0.00016711,2]
[350131726,1737646246729,-746.85,0.00016711,2]
[350131727,1737646246739,-500.0,0.00016711,2]
[350131728,1737646246752,-500.0,0.00016711,2]
[350131729,1737646246762,-500.0,0.00016711,2]
[350131730,1737646246771,-881.92,0.00016711,2]
[350131731,1737646246782,-500.0,0.00016711,2]
[350131732,1737646246792,-719.3,0.00016711,2]
[350131733,1737646246802,-566.44996397,0.00016711,2]
[350131734,1737646246811,-2248.96,0.00016711,2]
[350131735,1737646246821,-1673.27,0.00016711,2]
[350131736,1737646246831,-4292.79,0.00016711,2]
[350131737,1737646246841,-500.0,0.00016711,2]
[350131738,1737646246850,-850.57,0.00016711,2]
[350131739,1737646246859,-608.15575848,0.00016711,2]
[350131740,1737646246869,-500.0,0.00016711,2]
[350131741,1737646246878,-500.0,0.00016711,2]
[350131742,1737646246888,-500.0,0.00016711,2]
[350131743,1737646246897,-1558.87,0.00016711,2]
[350131744,1737646246907,-500.0,0.00016712,2]
[350131745,1737646246917,-509.50230113,0.00016712,2]
[350131746,1737646246926,-500.0,0.00016712,2]
[350131747,1737646246936,-500.0,0.00016712,2]
[350131748,1737646246946,-500.0,0.00016712,2]
[350131749,1737646246956,-500.0,0.00016712,2]
[350131750,1737646246965,-500.0,0.00016712,2]
[350131751,1737646246975,-500.0,0.00016712,2]
[350131752,1737646246984,-500.0,0.00016712,2]
[350131753,1737646246993,-500.0,0.00016712,2]
[350131754,1737646247006,-500.0,0.00016712,2]
[350131755,1737646247016,-500.0,0.00016712,2]
[350131756,1737646247025,-500.0,0.00016712,2]
[350131757,1737646247034,-500.0,0.00016712,2]
[350131758,1737646247045,-500.0,0.00016712,2]
[350131759,1737646247054,-500.0,0.00016712,2]
[350131760,1737646247063,-500.0,0.00016712,2]
[350131761,1737646247073,-500.0,0.00016712,2]
[350131762,1737646247083,-500.0,0.00016712,2]
[350131763,1737646247092,-500.0,0.00016712,2]
[350131764,1737646247102,-500.0,0.00016712,2]
[350131765,1737646247112,-500.0,0.00016712,2]
[350131766,1737646247122,-500.0,0.00016712,2]
[350131767,1737646247131,-500.0,0.00016712,2]
[350131768,1737646247140,-500.0,0.00016712,2]
[350131769,1737646247151,-786.67,0.00016712,2]
[350131770,1737646247160,-345.35062812,0.00016712,2]
[350131771,1737646247169,-706.73,0.00016712,2]
[350131772,1737646247178,-592.57,0.00016712,2]
[350131773,1737646247188,-500.0,0.00016712,2]
[350131774,1737646247197,-500.0,0.00016712,2]
[350131775,1737646247207,-500.0,0.00016712,2]
[350131776,1737646247216,-647.41,0.00016712,2]
[350131777,1737646247225,-500.0,0.00016712,2]
[350131778,1737646247235,-1402.88,0.00016712,2]
[350131779,1737646247245,-500.0,0.00016712,2]
[350131780,1737646247259,-500.0,0.00016712,2]
[350131781,1737646247269,-1256.65,0.00016712,2]
[350131782,1737646247279,-751.78,0.00016712,2]
[350131783,1737646247289,-1054.44,0.00016712,2]
[350131784,1737646247298,-727.97,0.00016712,2]
[350131785,1737646247307,-597.35,0.00016712,2]
[350131786,1737646247317,-643.5,0.00016712,2]
[350131787,1737646247327,-1491.65,0.00016712,2]
[350131788,1737646247336,-1146.8,0.00016712,2]
[350131789,1737646247347,-629.48,0.00016712,2]
[350131790,1737646247357,-567.0,0.00016712,2]
[350131791,1737646247366,-500.0,0.00016712,2]
[350131792,1737646247376,-1456.84,0.00016712,2]
[350131793,1737646247386,-500.0,0.00016712,2]
[350131794,1737646247395,-500.0,0.00016712,2]
[350131795,1737646247405,-500.0,0.00016712,2]
[350131796,1737646247416,-500.0,0.00016712,2]
[350131797,1737646247426,-1662.5,0.00016712,2]
[350131798,1737646247438,-1391.84,0.00016712,2]
[350131799,1737646247448,-500.0,0.00016712,2]
[350131800,1737646247459,-1236.01,0.00016712,2]
[350131801,1737646247470,-1012.34,0.00016712,2]
[350131802,1737646247479,-500.0,0.00016712,2]
[350131803,1737646247490,-500.0,0.00016712,2]
[350131804,1737646247502,-500.0,0.00016712,2]
[350131805,1737646247512,-241.4,0.00016712,2]
[350131806,1737646247522,-1580.52,0.00016712,2]
[350131807,1737646247532,-500.0,0.00016712,2]
[350131808,1737646247543,-500.0,0.00016712,2]
[350131809,1737646247553,-500.0,0.00016712,2]
[350131810,1737646247563,-500.0,0.00016712,2]
[350131811,1737646247573,-500.0,0.00016712,2]
[350131812,1737646247582,-691.99,0.00016712,2]
[350131813,1737646247592,-512.0348896,0.00016712,2]
[350131814,1737646247601,-376.43,0.00016813,2]
[350131815,1737646247611,-282.58,0.00016813,2]
[350131816,1737646247620,-38755.0,0.00016815,2]
[350131817,1737646247630,-1000.0,0.00016859,2]
[350131818,1737646247640,-4333.66,0.00016885,2]
[350131819,1737646247650,-839.68,0.00016885,2]
[350131820,1737646247660,-2564.549,0.00016886,2]
[350131821,1737646247670,-1841.2751891,0.00016914,2]
[350131822,1737646247680,-1146.82590284,0.00016969,2]
[350131823,1737646247690,-500.0,0.00016984,2]
[350131824,1737646247699,-752.9,0.00016984,2]
[350131825,1737646247709,-1478.89,0.00016984,2]
[350131826,1737646247719,-1543.68,0.00016984,2]
[350131827,1737646247729,-500.0,0.00016984,2]
[350131828,1737646247740,-2542.47,0.00016984,2]
[350131829,1737646247751,-640.83,0.00016984,2]
[350131830,1737646247761,-500.0,0.00016984,2]
[350131831,1737646247772,-1013.97,0.00016984,2]
[350131832,1737646247782,-655.12,0.00016984,2]
[350131833,1737646247792,-583.76,0.00016984,2]
[350131834,1737646247802,-500.0,0.00016984,2]
[350131835,1737646247812,-1510.7,0.00016984,2]
[350131836,1737646247822,-500.0,0.00016984,2]
[350131837,1737646247982,-2657.0,0.00016984,2]
[350131838,1737646248019,-500.0,0.00016985,2]
[350131839,1737646248029,-500.0,0.00016985,2]
[350131840,1737646248040,-500.0,0.00016985,2]
[350131841,1737646248050,-500.0,0.00016985,2]
[350131842,1737646248060,-514.13877028,0.00016985,2]
[350131843,1737646248070,-275.84039049,0.00016985,2]
[350131844,1737646248079,-500.0,0.00016985,2]
[350131845,1737646248090,-500.0,0.00016985,2]
[350131846,1737646248099,-500.0,0.00016985,2]
[350131847,1737646248109,-200.0,0.00016985,2]
[350131848,1737646248119,-500.0,0.00016985,2]
[350131849,1737646248130,-503.23452,0.00016985,2]
[350131850,1737646248140,-500.0,0.00016985,2]
[350131851,1737646248149,-500.0,0.00016985,2]
[350131852,1737646248166,-500.0,0.00016985,2]
[350131853,1737646248184,-500.0,0.00016985,2]
[350131854,1737646248194,-500.0,0.00016985,2]
[350131855,1737646248204,-500.0,0.00016985,2]
[350131856,1737646248214,-500.0,0.00016985,2]
[350131857,1737646248224,-500.0,0.00016985,2]
[350131858,1737646248233,-500.0,0.00016985,2]
[350131859,1737646248243,-500.0,0.00016985,2]
[350131860,1737646248256,-500.0,0.00016985,2]
[350131861,1737646248266,-500.0,0.00016985,2]
[350131862,1737646248276,-500.0,0.00016985,2]
[350131863,1737646248286,-500.0,0.00016985,2]
[350131864,1737646248297,-500.0,0.00016985,2]
[350131865,1737646248306,-500.0,0.00016985,2]
[350131866,1737646248316,-399.360083,0.00016985,2]
[350131867,1737646248326,-500.0,0.00016985,2]
[350131868,1737646248336,-500.0,0.00016985,2]
[350131869,1737646248346,-500.0,0.00016985,2]
[350131870,1737646248355,-504.68708748,0.00016985,2]
[350131871,1737646248365,-500.0,0.00016985,2]
[350131872,1737646248375,-500.0,0.00016985,2]
[350131873,1737646248385,-421.41625779,0.00016985,2]
[350131874,1737646248395,-500.0,0.00016985,2]
[350131875,1737646248405,-500.0,0.00016985,2]
[350131876,1737646248415,-500.0,0.00016985,2]
[350131877,1737646248426,-500.0,0.00016985,2]
[350131878,1737646248437,-500.0,0.00016985,2]
[350131879,1737646248451,-500.0,0.00016985,2]
[350131880,1737646248460,-500.0,0.00016985,2]
[350131881,1737646248470,-500.0,0.00016985,2]
[350131882,1737646248480,-500.0,0.00016985,2]
[350131883,1737646248491,-500.0,0.00016985,2]
[350131884,1737646248506,-500.0,0.00016985,2]
[350131885,1737646248516,-500.0,0.00016985,2]
[350131886,1737646248528,-500.0,0.00016985,2]
[350131887,1737646248541,-500.0,0.00016985,2]
[350131888,1737646248562,-500.0,0.00016985,2]
[350131889,1737646248578,-500.0,0.00016985,2]
[350131890,1737646248589,-500.0,0.00016985,2]
[350131891,1737646248600,-500.0,0.00016985,2]
[350131892,1737646248612,-500.0,0.00016985,2]
[350131893,1737646248623,-500.0,0.00016985,2]
[350131894,1737646248634,-360.35095664,0.00016985,2]
[350131895,1737646248645,-500.0,0.00016985,2]
[350131896,1737646248656,-500.0,0.00016985,2]
[350131897,1737646248666,-500.0,0.00016985,2]
[350131898,1737646248677,-500.0,0.00016985,2]
[350131899,1737646248688,-500.0,0.00016985,2]
[350131900,1737646248698,-500.0,0.00016985,2]
[350131901,1737646248709,-500.0,0.00016985,2]
[350131902,1737646248720,-500.0,0.00016985,2]
[350131903,1737646248731,-500.0,0.00016985,2]
[350131904,1737646248741,-500.0,0.00016985,2]
[350131905,1737646248755,-500.0,0.00016985,2]
[350131906,1737646248768,-500.0,0.00016985,2]
[350131907,1737646248778,-500.0,0.00016985,2]
[350131908,1737646248788,-490.77887876,0.00016985,2]
[350131909,1737646248799,-280.29066698,0.00016985,2]
[350131910,1737646248808,-500.0,0.00016985,2]
[350131911,1737646248818,-500.0,0.00016985,2]
[350131912,1737646248828,-500.0,0.00016985,2]
[350131913,1737646248838,-500.0,0.00016985,2]
[350131914,1737646248849,-500.0,0.00016985,2]
[350131915,1737646248867,-500.0,0.00016985,2]
[350131916,1737646248878,-500.0,0.00016985,2]
[350131917,1737646248890,-500.0,0.00016985,2]
[350131918,1737646248899,-500.0,0.00016985,2]
[350131919,1737646248909,-500.0,0.00016985,2]
[350131920,1737646248919,-500.0,0.00016985,2]
[350131921,1737646248930,-500.0,0.00016985,2]
[350131922,1737646248941,-500.0,0.00016985,2]
[350131923,1737646248952,-500.0,0.00016985,2]
[350131924,1737646248962,-500.0,0.00016985,2]
[350131925,1737646248972,-500.0,0.00016985,2]
[350131926,1737646248981,-500.0,0.00016985,2]
[350131927,1737646248992,-268.21210132,0.00016985,2]
[350131928,1737646249007,-500.0,0.00016985,2]
[350131929,1737646249018,-500.0,0.00016985,2]
[350131930,1737646249028,-500.0,0.00016985,2]
[350131931,1737646249040,-503.8234958,0.00016985,2]
[350131932,1737646249050,-500.0,0.00016985,2]
[350131933,1737646249061,-500.0,0.00016985,2]
[350131934,1737646249071,-500.0,0.00016985,2]
[350131935,1737646249081,-500.0,0.00016985,2]
[350131936,1737646249092,-500.0,0.00016985,2]
[350131937,1737646249101,-500.0,0.00016985,2]
[350131938,1737646249111,-508.49426775,0.00016985,2]
[350131939,1737646249121,-500.0,0.00016985,2]
[350131940,1737646249131,-402.75772404,0.00016985,2]
[350131941,1737646249140,-500.0,0.00016985,2]
[350131942,1737646249150,-507.27398672,0.00016985,2]
[350131943,1737646249159,-392.0701443,0.00016985,2]
[350131944,1737646249170,-500.0,0.00016985,2]
[350131945,1737646249181,-500.0,0.00016985,2]
[350131946,1737646249190,-285.3529995,0.00016985,2]
[350131947,1737646249200,-500.0,0.00016985,2]
[350131948,1737646249210,-500.0,0.00016985,2]
[350131949,1737646249220,-500.0,0.00016985,2]
[350131950,1737646249230,-500.0,0.00016985,2]
[350131951,1737646249240,-284.17243776,0.00016985,2]
[350131952,1737646249256,-500.0,0.00016985,2]
[350131953,1737646249266,-353.13062737,0.00016985,2]
[350131954,1737646249276,-500.0,0.00016985,2]
[350131955,1737646249286,-500.0,0.00016985,2]
[350131956,1737646249296,-500.0,0.00016985,2]
[350131957,1737646249306,-500.0,0.00016985,2]
[350131958,1737646249316,-500.0,0.00016985,2]
[350131959,1737646249326,-500.0,0.00016985,2]
[350131960,1737646249336,-500.0,0.00016985,2]
[350131961,1737646249345,-634.33043383,0.00016985,2]
[350131962,1737646249355,-500.0,0.00016985,2]
[350131963,1737646249366,-500.0,0.00016985,2]
[350131964,1737646249376,-429.37848555,0.00016985,2]
[350131965,1737646249386,-500.0,0.00016985,2]
[350131966,1737646249396,-500.0,0.00016985,2]
[350131967,1737646249406,-469.00603,0.00016985,2]
[350131968,1737646249416,-500.0,0.00016985,2]
[350131969,1737646249425,-500.0,0.00016985,2]
[350131970,1737646249435,-500.0,0.00016985,2]
[350131971,1737646249446,-500.0,0.00016985,2]
[350131972,1737646249455,-500.0,0.00016985,2]
[350131973,1737646249467,-500.0,0.00016985,2]
[350131974,1737646249477,-500.0,0.00016985,2]
[350131975,1737646249487,-500.0,0.00016985,2]
[350131976,1737646249499,-500.0,0.00016985,2]
[350131977,1737646249515,-500.0,0.00016985,2]
[350131978,1737646249524,-500.0,0.00016985,2]
[350131979,1737646249535,-500.0,0.00016985,2]
[350131980,1737646249546,-500.0,0.00016985,2]
[350131981,1737646249558,-500.0,0.00016985,2]
[350131982,1737646249567,-500.0,0.00016985,2]
[350131983,1737646249577,-583.41195387,0.00016985,2]
[350131984,1737646249588,-500.0,0.00016985,2]
[350131985,1737646249598,-500.0,0.00016985,2]
[350131986,1737646249609,-500.0,0.00016985,2]
[350131987,1737646249618,-500.0,0.00016985,2]
[350131988,1737646249628,-500.0,0.00016985,2]
[350131989,1737646249639,-500.0,0.00016985,2]
[350131990,1737646249649,-500.0,0.00016985,2]
[350131991,1737646249659,-500.0,0.00016985,2]
[350131992,1737646249669,-500.0,0.00016985,2]
[350131993,1737646249679,-500.0,0.00016985,2]
[350131994,1737646249689,-500.0,0.00016985,2]
[350131995,1737646249699,-500.0,0.00016985,2]
[350131996,1737646249708,-500.0,0.00016985,2]
[350131997,1737646249718,-500.0,0.00016985,2]
[350131998,1737646249728,-500.0,0.00016985,2]
[350131999,1737646249737,-500.0,0.00016985,2]
[350132000,1737646249746,-500.0,0.00016985,2]
[350132001,1737646249765,-500.0,0.00016985,2]
[350132002,1737646249777,-500.0,0.00016985,2]
[350132003,1737646249788,-500.0,0.00016985,2]
[350132004,1737646249798,-500.0,0.00016985,2]
[350132005,1737646249808,-500.0,0.00016985,2]
[350132006,1737646249818,-500.0,0.00016985,2]
[350132007,1737646249833,-500.0,0.00016985,2]
[350132008,1737646249843,-500.0,0.00016985,2]
[350132009,1737646249854,-500.0,0.00016985,2]
[350132010,1737646249864,-500.0,0.00016985,2]
[350132011,1737646249874,-500.0,0.00016985,2]
[350132012,1737646249884,-500.0,0.00016985,2]
[350132013,1737646249895,-500.0,0.00016985,2]
[350132014,1737646249905,-500.0,0.00016985,2]
[350132015,1737646249915,-500.0,0.00016985,2]
[350132016,1737646249925,-500.0,0.00016985,2]
[350132017,1737646249935,-500.0,0.00016985,2]
[350132018,1737646249945,-504.45189979,0.00016985,2]
[350132019,1737646249955,-500.0,0.00016985,2]
[350132020,1737646249964,-500.0,0.00016985,2]
[350132021,1737646249975,-508.99245816,0.00016985,2]
[350132022,1737646249984,-500.0,0.00016985,2]
[350132023,1737646249994,-500.0,0.00016985,2]
[350132024,1737646250010,-514.84,0.00016985,2]
[350132025,1737646250021,-551.63,0.00016985,2]
[350132026,1737646250030,-500.0,0.00016985,2]
[350132027,1737646250041,-500.0,0.00016985,2]
[350132028,1737646250050,-500.0,0.00016985,2]
[350132029,1737646250060,-562.05,0.00016985,2]
[350132030,1737646250070,-531.51,0.00016985,2]
[350132031,1737646250080,-515.1629674,0.00016985,2]
[350132032,1737646250090,-437.13935291,0.00016985,2]
[350132033,1737646250100,-500.0,0.00016985,2]
[350132034,1737646250111,-500.0,0.00016985,2]
[350132035,1737646250122,-500.0,0.00016985,2]
[350132036,1737646250132,-500.0,0.00016985,2]
[350132037,1737646250142,-500.0,0.00016985,2]
[350132038,1737646250151,-573.29,0.00016985,2]
[350132039,1737646250161,-19.2249502,0.00016985,2]
[350132040,1737646250387,-480.7750498,0.00016985,2]
[350132041,1737646250397,-500.0,0.00016985,2]
[350132042,1737646250406,-500.0,0.00016985,2]
[350132043,1737646250417,-824.58,0.00016985,2]
[350132044,1737646250426,-1318.48,0.00016985,2]
[350132045,1737646250436,-500.0,0.00016985,2]
[350132046,1737646250451,-500.0,0.00016985,2]
[350132047,1737646250461,-500.0,0.00016985,2]
[350132048,1737646250471,-26.1649502,0.00016985,2]
[350132049,1737646250750,-263.258183,0.00014846,2]
[350132050,1737646250801,-755.60676301,0.00014846,2]
[350132051,1737646250812,-721.95064997,0.00014846,2]
[350132052,1737646250823,-1418.75144141,0.00014846,2]
[350132053,1737646250833,-500.0,0.00016438,2]
[350132054,1737646250842,-500.0,0.00016438,2]
[350132055,1737646250852,-450.317732,0.00016438,2]
[350132056,1737646250861,-500.0,0.00016438,2]
[350132057,1737646250871,-808.81,0.00016711,2]
[350132058,1737646250880,-500.0,0.00016711,2]
[350132059,1737646250890,-500.0,0.00016712,2]
[350132060,1737646250899,-450.317732,0.00016712,2]
[350132061,1737646250908,-541.3550498,0.00016985,2]
[350132062,1737646250919,-500.0,0.00016985,2]
[350132063,1737646250932,-10.99980543,0.00016985,2]
[350132064,1737646250966,-1123.75019457,0.00016985,2]
[350132065,1737646250976,-500.0,0.00016985,2]
[350132066,1737646250986,-526.35,0.00016985,2]
[350132067,1737646250996,-500.0,0.00016985,2]
[350132068,1737646251011,-800.49,0.00016985,2]
[350132069,1737646251020,-517.44,0.00016985,2]
[350132070,1737646251030,-500.0,0.00016985,2]
[350132071,1737646251039,-836.94,0.00016985,2]
[350132072,1737646251049,-500.0,0.00016985,2]
[350132073,1737646251058,-500.0,0.00016985,2]
[350132074,1737646251068,-500.0,0.00016985,2]
[350132075,1737646251078,-500.0,0.00016985,2]
[350132076,1737646251088,-500.0,0.00016985,2]
[350132077,1737646251097,-1190.29,0.00016985,2]
[350132078,1737646251107,-581.61,0.00016985,2]
[350132079,1737646251117,-1066.68,0.00016985,2]
[350132080,1737646251126,-500.0,0.00016985,2]
[350132081,1737646251136,-500.0,0.00016985,2]
[350132082,1737646251145,-500.0,0.00016985,2]
[350132083,1737646251154,-775.23,0.00016985,2]
[350132084,1737646251164,-500.0,0.00016985,2]
[350132085,1737646251173,-500.0,0.00016985,2]
[350132086,1737646251182,-704.27,0.00016985,2]
[350132087,1737646251191,-1759.34,0.00016985,2]
[350132088,1737646251200,-500.0,0.00016985,2]
[350132089,1737646251209,-712.5,0.00016985,2]
[350132090,1737646251218,-648.67,0.00016985,2]
[350132091,1737646251228,-1000.0,0.00016985,2]
[350132092,1737646251237,-500.0,0.00016985,2]
[350132093,1737646251247,-935.25,0.00016985,2]
[350132094,1737646251262,-830.25,0.00016985,2]
[350132095,1737646251271,-500.0,0.00016985,2]
[350132096,1737646251280,-500.0,0.00016985,2]
[350132097,1737646251290,-500.0,0.00016985,2]
[350132098,1737646251299,-500.0,0.00016985,2]
[350132099,1737646251479,-500.0,0.00016985,2]
[350132100,1737646251491,-596.3,0.00016985,2]
[350132101,1737646251502,-500.0,0.00016985,2]
[350132102,1737646251522,-1156.85,0.00016985,2]
[350132103,1737646251532,-500.0,0.00016985,2]
[350132104,1737646251542,-500.0,0.00016985,2]
[350132105,1737646251551,-500.0,0.00016985,2]
[350132106,1737646251561,-644.57,0.00016985,2]
[350132107,1737646251570,-500.0,0.00016985,2]
[350132108,1737646251580,-500.0,0.00016985,2]
[350132109,1737646251589,-500.0,0.00016985,2]
[350132110,1737646251598,-582.25,0.00016985,2]
[350132111,1737646251607,-1327.53,0.00016985,2]
[350132112,1737646251616,-1019.52,0.00016985,2]
[350132113,1737646251626,-500.0,0.00016985,2]
[350132114,1737646251635,-500.0,0.00016985,2]
[350132115,1737646251645,-500.0,0.00016985,2]
[350132116,1737646251654,-500.0,0.00016985,2]
[350132117,1737646251664,-500.0,0.00016985,2]
[350132118,1737646251673,-500.0,0.00016985,2]
[350132119,1737646251683,-734.22,0.00016985,2]
[350132120,1737646251692,-500.0,0.00016985,2]
[350132121,1737646251701,-500.0,0.00016985,2]
[350132122,1737646251710,-500.0,0.00016985,2]
[350132123,1737646251721,-1132.53,0.00016985,2]
[350132124,1737646251730,-500.0,0.00016985,2]
[350132125,1737646251740,-500.0,0.00016985,2]
[350132126,1737646251749,-724.02,0.00016985,2]
[350132127,1737646251762,-500.0,0.00016985,2]
[350132128,1737646251771,-1365.92,0.00016985,2]
[350132129,1737646251780,-318.07219102,0.00016985,2]
[350132130,1737646251790,-500.0,0.00016985,2]
[350132131,1737646251800,-500.0,0.00016985,2]
[350132132,1737646251810,-500.0,0.00016985,2]
[350132133,1737646251819,-500.0,0.00016985,2]
[350132134,1737646251828,-1679.6,0.00016985,2]
[350132135,1737646251838,-990.32,0.00016985,2]
[350132136,1737646251847,-500.0,0.00016985,2]
[350132137,1737646251857,-500.0,0.00016985,2]
[350132138,1737646251866,-500.0,0.00016985,2]
[350132139,1737646251875,-516.69188497,0.00016985,2]
[350132140,1737646251885,-500.0,0.00016985,2]
[350132141,1737646251894,-500.0,0.00016985,2]
[350132142,1737646251903,-500.0,0.00016985,2]
[350132143,1737646251913,-780.82,0.00016985,2]
[350132144,1737646251923,-500.0,0.00016985,2]
[350132145,1737646251935,-500.0,0.00016985,2]
[350132146,1737646251946,-500.0,0.00016985,2]
[350132147,1737646251956,-500.0,0.00016985,2]
[350132148,1737646251966,-500.0,0.00016985,2]
[350132149,1737646251975,-1483.53,0.00016985,2]
[350132150,1737646251986,-500.0,0.00016985,2]
[350132151,1737646251996,-500.0,0.00016985,2]
[350132152,1737646252009,-500.0,0.00016985,2]
[350132153,1737646252018,-500.0,0.00016985,2]
[350132154,1737646252028,-568.96,0.00016985,2]
[350132155,1737646252038,-500.0,0.00016985,2]
[350132156,1737646252049,-436.73908119,0.00016985,2]
[350132157,1737646252059,-500.0,0.00016985,2]
[350132158,1737646252069,-542.35,0.00016985,2]
[350132159,1737646252078,-500.0,0.00016985,2]
[350132160,1737646252088,-500.0,0.00016985,2]
[350132161,1737646252098,-817.26,0.00016985,2]
[350132162,1737646252107,-746.85,0.00016985,2]
[350132163,1737646252116,-500.0,0.00016985,2]
[350132164,1737646252126,-500.0,0.00016985,2]
[350132165,1737646252135,-881.92,0.00016985,2]
[350132166,1737646252144,-500.0,0.00016985,2]
[350132167,1737646252153,-719.3,0.00016985,2]
[350132168,1737646252163,-2248.96,0.00016985,2]
[350132169,1737646252172,-500.0,0.00016985,2]
[350132170,1737646252181,-500.0,0.00016985,2]
[350132171,1737646252190,-1673.27,0.00016985,2]
[350132172,1737646252199,-4292.79,0.00016985,2]
[350132173,1737646252207,-500.0,0.00016985,2]
[350132174,1737646252218,-500.0,0.00016985,2]
[350132175,1737646252227,-500.0,0.00016985,2]
[350132176,1737646252236,-850.57,0.00016985,2]
[350132177,1737646252246,-500.0,0.00016985,2]
[350132178,1737646252258,-500.0,0.00016985,2]
[350132179,1737646252267,-1558.87,0.00016985,2]
[350132180,1737646252276,-808.81,0.00016985,2]
[350132181,1737646252285,-500.0,0.00016986,2]
[350132182,1737646252295,-500.0,0.00016986,2]
[350132183,1737646252304,-459.4201209,0.00016986,2]
[350132184,1737646252313,-500.0,0.00016986,2]
[350132185,1737646252323,-500.0,0.00016986,2]
[350132186,1737646252332,-500.0,0.00016986,2]